fUST/lending_fUST_20250407
["ID","MTS","AMOUNT","RATE_DAILY","PERIOD"]
[357291136,1743984639534,-185.67167413,0.00035616,7]
[357291137,1743984639544,-185.75347943,0.00035616,7]
[357291138,1743984639554,-1178.43679359,0.00035866,12]
[357291139,1743984639563,-700.0,0.00035946,7]
[357291140,1743984639574,-700.0,0.00036483,7]
[357291141,1743984639584,-1178.43679359,0.00036555,13]
[357291142,1743984639594,-1178.43679359,0.00037245,13]
[357291143,1743984639603,-500.0,0.00037315,7]
[357291144,1743984639613,-2111.94758159,0.00037876,2]
[357291145,1743984639622,-486.158,0.00037888,49]
[357291146,1743984639632,-1178.43679359,0.00037934,14]
[357291147,1743984639642,-1500.0,0.00038356,5]
[357291148,1743984639652,-500.0,0.00038502,7]
[357291149,1743984639662,-1178.43679359,0.00038624,14]
[357291150,1743984639671,-354.7,0.00038661,30]
[357291151,1743984639681,-153.0,0.00038735,31]
[357291152,1743984639692,-153.0,0.00038735,31]
[357291153,1743984639702,-153.0,0.00038735,31]
[357291154,1743984639712,-700.0,0.00038843,7]
[357291155,1743984639722,-1178.43679359,0.00039314,15]
[357291156,1743984639732,-12525.30748765,0.0003941,2]
[357291157,1743984639742,-160.0,0.00039431,2]
[357291158,1743984639752,-419.28457398,0.00039431,2]
[357291159,1743984639762,-677.08333333,0.00039431,2]
[357291160,1743984639771,-500.0,0.00039973,5]
[357291161,1743984639781,-500.0,0.00039973,5]
[357291162,1743984639791,-39107.8781289,0.0003999,3]
[357291163,1743984639801,-5341.12803422,0.0003999,3]
[357291164,1743984639810,-169307.1806037,0.0004,120]
[357291165,1743984639820,-351178.89993258,0.0004,60]
[357291166,1743984639829,-12525.30748765,0.0004,3]
[357291167,1743984639839,-677.08333333,0.0004,3]
[357291168,1743984639849,-1178.43679359,0.00040003,15]
[357291169,1743984639858,-700.0,0.00040171,30]
[357291170,1743984639868,-2111.94758159,0.0004062,28]
[357291171,1743984639878,-1178.43679359,0.00040693,16]
[357291172,1743984639887,-700.0,0.00040812,30]
[357291173,1743984639900,-3555.26164808,0.00041329,3]
[357291174,1743984639910,-485.55709402,0.00041329,3]
[357291175,1743984639919,-700.0,0.00041346,30]
[357291176,1743984639929,-1178.43679359,0.00041383,16]
[357291177,1743984639938,-157.158686,0.00041753,2]
[357291178,1743984639947,-500.0,0.00042013,30]
[357291179,1743984639956,-1178.43679359,0.00042072,16]
[357291180,1743984639966,-151.0,0.000425,17]
[357291181,1743984639976,-1178.43679359,0.00042762,17]
[357291182,1743984639985,-3555.26164808,0.0004299,3]
[357291183,1743984639995,-485.55709402,0.0004299,3]
[357291184,1743984640005,-805.89567773,0.00043,7]
[357291185,1743984640015,-805.89567773,0.00043,7]
[357291186,1743984640024,-41305.34056123,0.00043,7]
[357291187,1743984640034,-41305.34056123,0.00043,7]
[357291188,1743984640044,-805.89567773,0.00043,7]
[357291189,1743984640053,-805.89567773,0.00043,7]
[357291190,1743984640063,-2111.94758159,0.00043364,28]
[357291191,1743984640073,-1178.43679359,0.00043452,17]
[357291192,1743984640083,-203.75261363,0.00043826,3]
[357291193,1743984640096,-1814.03597653,0.00043826,3]
[357291194,1743984640109,-1537.47305792,0.00043826,3]
[357291195,1743984640118,-485.55709402,0.00043826,3]
[357291196,1743984640128,-533.16179593,0.00043835,120]
[357291197,1743984640138,-1741.36231101,0.00043836,10]
[357291287,1743984646482,-709.5,0.00038661,30]
[357291288,1743984646492,-160.0,0.00039431,2]
[357291289,1743984646503,-258.63768899,0.00043836,10]
[357291290,1743984646513,-200.0,0.00044072,14]
[357291291,1743984646523,-200.0,0.00044072,14]
[357291292,1743984646533,-500.0,0.00044077,30]
[357291293,1743984646542,-1178.43679359,0.00044141,18]
[357291294,1743984646552,-150.0,0.00044241,2]
[357291295,1743984646562,-151.1,0.00044241,2]
[357291296,1743984646571,-542.0,0.00044241,2]
[357291297,1743984646581,-1180.07700958,0.00044241,2]
[357291303,1743984794397,271.7364551,0.00013699,2]
[357291304,1743984820484,-500.0,0.00024212,2]
[357291305,1743984820510,-500.0,0.00024773,2]
[357291314,1743985562189,161.06730515,0.00022,10]
[357291318,1743985630229,-157.55743778,0.00023276,2]
[357291319,1743985663355,-500.0,0.00023009,2]
[357291322,1743985747117,-300.0,0.00023009,2]
[357291323,1743985747140,-800.0,0.00023947,2]
[357291324,1743985747163,-1010.69186813,0.00024,2]
[357291325,1743985747185,-800.0,0.00024062,2]
[357291326,1743985747207,-175.404752,0.00024939,2]
[357291327,1743985747228,-800.0,0.00025021,2]
[357291328,1743985747251,-274.45366488,0.00025991,2]
[357291329,1743985773122,-225.54633512,0.00025991,2]
[357291330,1743985773146,-41.76219204,0.00026208,2]
[357291359,1743985832773,-193.0,0.00025,2]
[357291360,1743985832784,-300.0,0.00026208,2]
[357291361,1743985832794,-23629.5226484,0.00026209,2]
[357291362,1743985832803,-800.0,0.00026377,2]
[357291363,1743985832814,-155.19,0.000266,31]
[357291364,1743985832824,-800.0,0.00026663,2]
[357291365,1743985832833,-1930.13198832,0.00026872,2]
[357291366,1743985832843,-2227.32143755,0.000269,7]
[357291367,1743985832853,-6584.99315984,0.00027,2]
[357291368,1743985832863,-257.20483,0.00027397,120]
[357291369,1743985832873,-2227.32143753,0.0002759,7]
[357291370,1743985832882,-500.0,0.00027733,2]
[357291371,1743985832891,-677.08333333,0.00028,10]
[357291372,1743985832901,-677.08333333,0.00028,10]
[357291373,1743985832914,-2227.32143753,0.00028279,7]
[357291374,1743985832924,-420.0,0.00028357,2]
[357291375,1743985832936,-800.0,0.00028776,2]
[357291376,1743985832947,-500.0,0.00028873,5]
[357291377,1743985832956,-171.58183737,0.00028873,5]
[357291378,1743985832966,-500.0,0.00028873,5]
[357291379,1743985832976,-500.64861781,0.00028873,5]
[357291380,1743985832986,-500.0,0.00028873,5]
[357291381,1743985832996,-500.0,0.00028873,5]
[357291382,1743985833006,-511.12613421,0.00028873,5]
[357291383,1743985833016,-502.21148346,0.00028873,5]
[357291384,1743985833026,-500.0,0.00028873,5]
[357291385,1743985833036,-500.0,0.00028873,5]
[357291386,1743985833046,-500.0,0.00028873,5]
[357291387,1743985833056,-500.0,0.00028873,5]
[357291388,1743985833066,-193.55946868,0.00028883,2]
[357291389,1743985833076,-200.0,0.00028883,2]
[357291390,1743985833087,-17774.8153074,0.0002889,2]
[357291391,1743985833098,-2330.67405126,0.0002889,2]
[357291392,1743985833109,-500.0,0.00028899,2]
[357291393,1743985833119,-236.78440039,0.00028899,2]
[357291394,1743985833129,-247469.28629588,0.000289,2]
[357291415,1743985838317,-171.469886,0.00027954,120]
[357291416,1743985838327,-2793.0096171,0.000289,2]
[357291417,1743985838339,-1044.04148311,0.000289,2]
[357291418,1743985838429,-64129.00902138,0.000289,2]
[357291419,1743985838439,-2227.32143753,0.00028969,8]
[357291420,1743985838449,-500.0,0.00028973,5]
[357291421,1743985838459,-500.0,0.00028973,2]
[357291423,1743985838469,-650.0,0.00028973,5]
[357291426,1743985838478,-500.0,0.00028973,5]
[357291427,1743985838488,-500.0,0.00028973,5]
[357291428,1743985838497,-500.0,0.00028973,5]
[357291429,1743985838506,-500.0,0.00028973,5]
[357291430,1743985838516,-511.78491372,0.00028973,5]
[357291431,1743985838525,-500.0,0.00028973,5]
[357291432,1743985838535,-297.62855318,0.00028973,5]
[357291433,1743985838545,-500.0,0.00028973,5]
[357291434,1743985838555,-5924.9384358,0.0002899,2]
[357291435,1743985838564,-776.89135042,0.0002899,2]
[357291436,1743985838574,-20652.67028062,0.00029,7]
[357291437,1743985838583,-20652.67028062,0.00029,7]
[357291438,1743985838593,-805.89567773,0.00029,7]
[357291439,1743985838602,-1187.6357356,0.00029,7]
[357291440,1743985838612,-677.08333333,0.00029,7]
[357291441,1743985838621,-833.53177531,0.00029,10]
[357291442,1743985838631,-500.0,0.00029385,2]
[357291443,1743985838641,-160.0,0.00029407,2]
[357291444,1743985838650,-160.0,0.00029415,2]
[357291445,1743985838659,-419.28457398,0.00029415,2]
[357291446,1743985838669,-12525.30748765,0.00029415,2]
[357291447,1743985838679,-677.08333333,0.00029415,2]
[357291448,1743985838689,-1930.13198831,0.00029624,2]
[357291449,1743985838699,-2227.32143753,0.00029659,8]
[357291450,1743985838708,-3537.44352993,0.000299,120]
[357291451,1743985838718,-805.89567773,0.0003,7]
[357291452,1743985838728,-1187.6357356,0.0003,7]
[357291453,1743985838738,-933.06745951,0.0003,2]
[357291454,1743985838748,-207.4,0.00030252,2]
[357291455,1743985838758,-2227.32143753,0.00030348,9]
[357291456,1743985838771,-587.0,0.00030682,2]
[357291457,1743985838782,-800.0,0.0003089,7]
[357291458,1743985838791,-2227.32143753,0.00031038,9]
[357291459,1743985838801,-800.0,0.00031178,7]
[357291460,1743985838811,-800.0,0.00031353,7]
[357291461,1743985838820,-155.19,0.000315,31]
[357291462,1743985838830,-155.19,0.000315,31]
[357291463,1743985838839,-215.0738,0.00031621,2]
[357291464,1743985838849,-2227.32143753,0.00031728,10]
[357291465,1743985838861,-1930.13198831,0.00032375,2]
[357291466,1743985838875,-2227.32143753,0.00032417,10]
[357291467,1743985838885,-223.0315306,0.0003299,2]
[357291468,1743985838895,-577.02152903,0.00033,120]
[357291469,1743985838905,-500.0,0.00033048,7]
[357291470,1743985838920,-201.75659287,0.00033051,10]
[357291471,1743985838929,-2227.32143753,0.00033107,11]
[357291472,1743985838939,-823.0,0.00033198,2]
[357291473,1743985838948,-2227.32143753,0.00033797,11]
[357291474,1743985838957,-500.0,0.00034,120]
[357291475,1743985838966,-800.0,0.00034053,7]
[357291476,1743985838975,-800.0,0.00034096,7]
[357291477,1743985838985,-800.0,0.00034176,7]
[357291478,1743985838994,-1000.0,0.00034352,5]
[357291479,1743985839004,-1000.0,0.00034352,5]
[357291480,1743985839014,-1000.0,0.00034352,5]
[357291481,1743985839023,-231.28369723,0.00034359,2]
[357291482,1743985839033,-2962.4692179,0.00034398,2]
[357291483,1743985839043,-388.44567521,0.00034398,2]
[357291484,1743985839054,-800.0,0.00034408,7]
[357291485,1743985839065,-1000.0,0.00034452,5]
[357291486,1743985839075,-1000.0,0.00034452,2]
[357291487,1743985839084,-1000.0,0.00034452,5]
[357291488,1743985839094,-501.28450436,0.00034452,5]
[357291489,1743985839103,-500.0,0.00034452,5]
[357291490,1743985839113,-2227.32143753,0.00034486,11]
[357291491,1743985839122,-171.469886,0.00034942,120]
[357291492,1743985839131,-18042.43982678,0.0003499,30]
[357291493,1743985839141,-500.0,0.00035,120]
[357291494,1743985839151,-4896.12111245,0.00035,120]
[357291495,1743985839161,-500.0,0.00035,10]
[357291497,1743985839171,-1930.13198831,0.00035127,2]
[357291498,1743985839180,-2227.32143753,0.00035176,12]
[357291499,1743985839190,-800.0,0.00035385,7]
[357291500,1743985839199,-800.0,0.00035438,7]
[357291501,1743985839209,-500.0,0.00035616,7]
[357291502,1743985839219,-454.65905985,0.00035616,7]
[357291503,1743985839229,-239.84119403,0.00035728,2]
[357291504,1743985839238,-2227.32143753,0.00035866,12]
[357291505,1743985839248,-1000.0,0.0003589,2]
[357291506,1743985839258,-360.0,0.00035919,2]
[357291507,1743985839267,-800.0,0.0003593,7]
[357291508,1743985839277,-800.0,0.00035952,7]
[357291509,1743985839286,-800.0,0.00036007,7]
[357291510,1743985839296,-155.19,0.000364,31]
[357291511,1743985839306,-155.19,0.000364,31]
[357291512,1743985839316,-2227.32143753,0.00036555,13]
[357291513,1743985839326,-800.0,0.00036795,7]
[357291514,1743985839335,-800.0,0.00037026,7]
[357291515,1743985839345,-262.28060068,0.00037097,2]
[357291516,1743985839354,-2227.32143753,0.00037245,13]
[357291517,1743985839363,-500.0,0.00037299,7]
[357291518,1743985839373,-175.404752,0.00037408,2]
[357291519,1743985839383,-1930.13198831,0.00037879,2]
[357291520,1743985839392,-788.56,0.00037901,50]
[357291521,1743985839401,-170.91,0.00037901,50]
[357291522,1743985839415,-2227.32143753,0.00037934,14]
[357291523,1743985839424,-153.0,0.00038278,31]
[357291524,1743985839434,-153.0,0.00038278,31]
[357291525,1743985839444,-2227.32143753,0.00038624,14]
[357291526,1743985839454,-800.0,0.00038805,7]
[357291527,1743985839464,-555.541,0.00039,120]
[357291528,1743985839473,-1747.88875037,0.00039,120]
[357291529,1743985839482,-420.47256183,0.00039284,6]
[357291530,1743985839492,-2227.32143753,0.00039314,15]
[357291531,1743985839502,-2975.0,0.0003951,2]
[357291532,1743985839511,-709.5,0.00039599,30]
[357291533,1743985839521,-160.0,0.00039844,3]
[357291534,1743985839531,-800.0,0.00039885,7]
[357291535,1743985839541,-2962.4692179,0.00039961,3]
[357291536,1743985839551,-388.44567521,0.00039961,3]
[357291537,1743985839560,-22001.15346874,0.00039971,2]
[357291538,1743985839570,-500.0,0.00039973,5]
[357291539,1743985839580,-500.0,0.00039973,5]
[357291540,1743985839590,-500.0,0.00039973,5]
[357291541,1743985839600,-500.0,0.00039973,5]
[357291542,1743985839610,-160.0,0.0003999,3]
[357291543,1743985839620,-23699.7537432,0.0003999,3]
[357291544,1743985839630,-3107.56540168,0.0003999,3]
[357291545,1743985839639,-5924.9384358,0.0003999,3]
[357291546,1743985839650,-776.89135042,0.0003999,3]
[357291547,1743985839662,-27226.34036361,0.00039999,3]
[357291548,1743985839672,-368723.59390567,0.0004,3]
[357291549,1743985839682,-117198.33384827,0.0004,60]
[357291550,1743985839696,-2666.0,0.0004,60]
[357291551,1743985839709,-493.55946868,0.0004,60]
[357291578,1743985840720,-0.02762391,0.0004,60]
[357291584,1743985840768,-3790.6281836,0.0004,60]
[357291618,1743985846536,-3678.559007,0.0004,60]
[357291625,1743986830134,-157.57515677,0.00023406,2]
[357291633,1743986968145,-600.0,0.00023804,2]
[357291634,1743986968167,-600.0,0.00024106,2]
[357291635,1743986968189,-500.0,0.00024108,2]
[357291636,1743986968211,-600.0,0.00025176,2]
[357291637,1743986968233,-600.0,0.00025435,2]
[357291638,1743986968254,-500.0,0.00026132,2]
[357291639,1743986968274,-600.0,0.00026221,2]
[357291640,1743986968301,-155.2,0.000266,31]
[357291641,1743986968324,-600.0,0.0002662,2]
[357291642,1743986968345,-300.0,0.00026899,2]
[357291643,1743986968366,-2170.8715711,0.000269,7]
[357291644,1743986968386,-328.93405338,0.00026993,2]
[357291693,1743987032879,-155.2,0.000266,31]
[357291694,1743987032890,-171.06594662,0.00026993,2]
[357291695,1743987032900,-171.469887,0.00027397,120]
[357291696,1743987032910,-152.73830146,0.00027397,5]
[357291697,1743987032985,-347.26169854,0.00027397,5]
[357291698,1743987032996,-2170.87157095,0.0002759,7]
[357291699,1743987033006,-502.37,0.00028183,2]
[357291700,1743987033016,-600.0,0.00028207,2]
[357291701,1743987033026,-2170.87157095,0.00028279,7]
[357291702,1743987033036,-300.0,0.00028786,2]
[357291703,1743987033047,-600.0,0.00028787,2]
[357291704,1743987033057,-175.404753,0.00028875,2]
[357291705,1743987033069,-2170.87157095,0.00028969,8]
[357291706,1743987033080,-498.38285333,0.00029,7]
[357291707,1743987033090,-498.38285334,0.00029,7]
[357291708,1743987033100,-600.0,0.00029371,2]
[357291710,1743987033110,-2170.87157095,0.00029659,8]
[357291711,1743987033120,-600.0,0.0002978,2]
[357291712,1743987033131,-600.0,0.00029795,2]
[357291713,1743987033142,-498.38285333,0.0003,7]
[357291714,1743987033153,-498.38285334,0.0003,7]
[357291715,1743987033165,-2170.87157095,0.00030348,9]
[357291716,1743987033176,-2170.87157095,0.00031038,9]
[357291717,1743987033187,-420.0,0.00031064,2]
[357291718,1743987033198,-155.2,0.000315,31]
[357291719,1743987033209,-155.2,0.000315,31]
[357291720,1743987033220,-2170.87157095,0.00031728,10]
[357291721,1743987033230,-600.0,0.00031872,7]
[357291722,1743987033241,-600.0,0.00031937,7]
[357291723,1743987033250,-600.0,0.00032402,7]
[357291724,1743987033260,-2170.87157095,0.00032417,10]
[357291725,1743987033270,-600.0,0.00032626,7]
[357291726,1743987033280,-500.0,0.00032876,5]
[357291727,1743987033290,-1000.0,0.00032877,5]
[357291728,1743987033301,-2170.87157095,0.00033107,11]
[357291729,1743987033311,-587.0,0.00033522,2]
[357291730,1743987033320,-2147.86424376,0.00033696,2]
[357291731,1743987033330,-2170.87157095,0.00033797,11]
[357291732,1743987033340,-2170.87157095,0.00034486,11]
[357291733,1743987033349,-600.0,0.00034536,7]
[357291734,1743987033360,-2170.87157095,0.00035176,12]
[357291735,1743987033370,-2147.86424376,0.00035474,2]
[357291736,1743987033381,-419.28457398,0.00035761,2]
[357291737,1743987033390,-2170.87157095,0.00035866,12]
[357291738,1743987033400,-1000.0,0.0003589,2]
[357291739,1743987033410,-463.0,0.00036174,2]
[357291740,1743987033419,-3657.39960313,0.000362,98]
[357291741,1743987033429,-3657.39960313,0.000362,98]
[357291742,1743987033438,-3657.39960313,0.000362,98]
[357291743,1743987033448,-500.0,0.00036228,7]
[357291744,1743987033458,-155.2,0.000364,31]
[357291745,1743987033467,-155.2,0.000364,31]
[357291746,1743987033477,-600.0,0.00036506,7]
[357291747,1743987033487,-2170.87157095,0.00036555,13]
[357291748,1743987033496,-500.0,0.00036594,2]
[357291749,1743987033506,-648.64890297,0.00036594,15]
[357291750,1743987033516,-500.0,0.00036594,2]
[357291751,1743987033527,-500.0,0.00036594,2]
[357291752,1743987033536,-500.0,0.00036594,2]
[357291753,1743987033546,-500.0,0.00036594,2]
[357291754,1743987033555,-500.0,0.00036594,2]
[357291755,1743987033565,-500.0,0.00036594,2]
[357291756,1743987033575,-500.0,0.00036594,2]
[357291757,1743987033585,-500.0,0.00036594,2]
[357291758,1743987033594,-500.0,0.00036594,2]
[357291759,1743987033604,-500.0,0.00036594,2]
[357291760,1743987033614,-500.0,0.00036594,2]
[357291761,1743987033623,-500.0,0.00036594,2]
[357291762,1743987033636,-500.0,0.00036594,2]
[357291763,1743987033645,-500.0,0.00036594,2]
[357291764,1743987033655,-500.0,0.00036594,2]
[357291765,1743987033664,-500.0,0.00036594,2]
[357291766,1743987033674,-500.0,0.00036594,2]
[357291767,1743987033683,-500.0,0.00036594,2]
[357291768,1743987033693,-500.0,0.00036594,2]
[357291769,1743987033703,-500.0,0.00036594,2]
[357291770,1743987033712,-500.0,0.00036594,2]
[357291771,1743987033722,-500.0,0.00036594,2]
[357291772,1743987033732,-500.0,0.00036594,2]
[357291773,1743987033742,-500.0,0.00036594,2]
[357291774,1743987033751,-500.0,0.00036594,2]
[357291775,1743987033760,-500.0,0.00036594,2]
[357291776,1743987033770,-500.0,0.00036594,2]
[357291777,1743987033779,-500.0,0.00036594,2]
[357291778,1743987033790,-500.0,0.00036594,2]
[357291779,1743987033799,-500.0,0.00036594,2]
[357291780,1743987033809,-500.0,0.00036594,2]
[357291781,1743987033819,-500.0,0.00036594,2]
[357291782,1743987033829,-500.0,0.00036594,2]
[357291783,1743987033838,-500.0,0.00036594,2]
[357291784,1743987033847,-500.0,0.00036594,2]
[357291785,1743987033856,-500.0,0.00036594,2]
[357291786,1743987033865,-500.0,0.00036594,2]
[357291787,1743987033877,-500.0,0.00036594,2]
[357291788,1743987033886,-500.0,0.00036594,2]
[357291789,1743987033896,-500.0,0.00036594,2]
[357291790,1743987033906,-500.0,0.00036594,2]
[357291791,1743987033916,-500.0,0.00036594,2]
[357291792,1743987033925,-500.0,0.00036594,2]
[357291793,1743987033937,-500.0,0.00036594,2]
[357291794,1743987033947,-500.0,0.00036594,2]
[357291795,1743987033957,-500.0,0.00036594,2]
[357291796,1743987033967,-500.0,0.00036594,2]
[357291797,1743987033978,-568.28103303,0.00036594,2]
[357291798,1743987033988,-500.0,0.00036594,2]
[357291799,1743987033998,-500.0,0.00036594,2]
[357291800,1743987034008,-500.0,0.00036594,2]
[357291801,1743987034018,-500.0,0.00036594,2]
[357291802,1743987034028,-500.0,0.00036594,2]
[357291803,1743987034038,-500.0,0.00036594,2]
[357291804,1743987034048,-500.0,0.00036594,2]
[357291805,1743987034058,-500.0,0.00036594,2]
[357291806,1743987034068,-500.0,0.00036594,2]
[357291807,1743987034078,-500.0,0.00036594,2]
[357291808,1743987034088,-500.0,0.00036594,2]
[357291809,1743987034099,-500.0,0.00036594,2]
[357291810,1743987034111,-500.0,0.00036594,2]
[357291811,1743987034123,-500.0,0.00036594,2]
[357291812,1743987034134,-500.0,0.00036594,2]
[357291813,1743987034145,-500.0,0.00036594,2]
[357291814,1743987034160,-500.0,0.00036594,2]
[357291815,1743987034171,-500.0,0.00036594,2]
[357291816,1743987034181,-500.0,0.00036594,2]
[357291817,1743987034193,-500.0,0.00036594,2]
[357291818,1743987034203,-500.0,0.00036594,2]
[357291819,1743987034213,-500.0,0.00036594,2]
[357291820,1743987034223,-500.0,0.00036594,2]
[357291821,1743987034234,-500.0,0.00036594,2]
[357291822,1743987034244,-500.0,0.00036594,2]
[357291823,1743987034254,-500.0,0.00036594,2]
[357291824,1743987034264,-500.0,0.00036594,2]
[357291825,1743987034274,-500.0,0.00036594,2]
[357291826,1743987034283,-400.0,0.00036594,2]
[357291827,1743987034293,-500.0,0.00036594,2]
[357291828,1743987034303,-500.0,0.00036594,2]
[357291829,1743987034313,-500.0,0.00036594,2]
[357291830,1743987034323,-500.0,0.00036594,2]
[357291831,1743987034332,-500.0,0.00036594,2]
[357291832,1743987034344,-160.0,0.00036974,7]
[357291833,1743987034355,-677.08333333,0.00036974,7]
[357291834,1743987034365,-768.61,0.00037,14]
[357291835,1743987034377,-1793.70757461,0.00037062,3]
[357291836,1743987034387,-2170.87157095,0.00037245,13]
[357291837,1743987034397,-2147.86424376,0.00037251,2]
[357291838,1743987034406,-500.0,0.00037358,5]
[357291839,1743987034415,-419.28457398,0.00037557,7]
[357291840,1743987034425,-500.0,0.00037702,7]
[357291841,1743987034436,-170.91,0.00037886,49]
[357291842,1743987034447,-788.56,0.00037886,49]
[357291843,1743987034458,-500.0,0.000379,5]
[357291844,1743987034468,-500.0,0.000379,2]
[357291845,1743987034478,-600.0,0.0003793,7]
[357291846,1743987034488,-1844.1283137,0.00037934,14]
[357291858,1743987038525,-326.74325725,0.00037934,14]
[357291859,1743987038535,-500.0,0.00038,14]
[357291860,1743987038545,-17.74364819,0.00038214,31]
[357291861,1743987038621,-135.25635181,0.00038214,31]
[357291862,1743987038634,-153.0,0.00038214,31]
[357291863,1743987038644,-153.0,0.00038214,31]
[357291864,1743987038653,-801.474849,0.00038356,5]
[357291865,1743987038665,-698.525151,0.00038356,5]
[357291866,1743987038674,-2170.87157095,0.00038624,14]
[357291867,1743987038684,-600.0,0.00038642,7]
[357291868,1743987038694,-2147.86424376,0.00039029,2]
[357291869,1743987038704,-500.0,0.00039229,5]
[357291870,1743987038714,-2170.87157095,0.00039314,15]
[357291871,1743987038724,-709.5,0.00039599,30]
[357291872,1743987038734,-272.76744721,0.00039789,2]
[357291873,1743987038744,-500.0,0.000398,120]
[357291874,1743987038753,-600.0,0.0003981,7]
[357291875,1743987038763,-22001.15346874,0.00039868,2]
[357291876,1743987038772,-1793.70757461,0.00039869,3]
[357291877,1743987038782,-3587.41514922,0.0003987,3]
[357291878,1743987038792,-500.0,0.00039873,5]
[357291879,1743987038801,-500.0,0.00039873,5]
[357291880,1743987038811,-500.0,0.00039873,5]
[357291881,1743987038820,-200.0,0.00039876,2]
[357291882,1743987038829,-578.12874673,0.00039879,31]
[357291883,1743987038840,-500.0,0.00039879,31]
[357291884,1743987038850,-454.65905985,0.00039879,31]
[357291885,1743987038859,-103627.64632877,0.0003988,2]
[357291886,1743987038869,-4191.81264469,0.00039889,3]
[357291887,1743987038882,-160.0,0.00039889,3]
[357291888,1743987038891,-677.08333333,0.00039889,3]
[357291889,1743987038901,-419.28457398,0.00039889,3]
[357291890,1743987038912,-10762.2454477,0.00039889,3]
[357291891,1743987038922,-221.9689573,0.00039889,3]
[357291892,1743987038932,-302527.38610293,0.00039899,2]
[357291893,1743987038942,-501.28450436,0.00039973,5]
[357291894,1743987038952,-500.0,0.00039973,5]
[357291895,1743987038962,-12555.9530223,0.0003999,3]
[357291896,1743987038972,-316.0,0.0003999,3]
[357291897,1743987038982,-14838.04182596,0.0004,120]
[357291898,1743987038992,-2429.92911583,0.0004,120]
[357291899,1743987039002,-183.0,0.0004,30]
[357291900,1743987039012,-317.728,0.0004,120]
[357291901,1743987039022,-228422.15697803,0.0004,60]
[357291902,1743987039034,-768.47500958,0.0004,60]
[357291909,1743987040855,-440.87003063,0.0004,60]
[357291910,1743987040912,-25548.80661954,0.0004,60]
[357291911,1743987040924,-569.77936835,0.0004,60]
[357291912,1743987040968,-24804.03764326,0.0004,60]
[357291913,1743987040978,-28686.43683918,0.0004,120]
[357291935,1743987043885,-627.74376452,0.0004,120]
[357291936,1743987043895,-1747.88875137,0.0004,120]
[357291937,1743987043905,-600.05883788,0.0004,120]
[357291938,1743987043915,-5000.0,0.0004,120]
[357291939,1743987043926,-317.99946924,0.0004,5]
[357291940,1743987043936,-2170.87157095,0.00040003,15]
[357291941,1743987043946,-564.03963749,0.00040574,120]
[357291942,1743987043963,-3093.35996564,0.00040574,120]
[357291943,1743987043973,-1666.14785057,0.00040693,16]
[357291950,1743987046894,-504.72372038,0.00040693,16]
[357291951,1743987046905,-2147.86424376,0.00040807,28]
[357291952,1743987046916,-151.0,0.000409,11]
[357291953,1743987046926,-160.0,0.00040923,4]
[357291954,1743987046936,-151.0,0.00041,18]
[357291955,1743987046948,-1793.70757461,0.00041063,3]
[357291956,1743987046959,-500.0,0.00041073,5]
[357291957,1743987046971,-500.0,0.00041073,5]
[357291958,1743987046982,-500.0,0.00041073,5]
[357291959,1743987046994,-500.0,0.00041073,5]
[357291960,1743987047004,-500.0,0.00041073,5]
[357291961,1743987047014,-223.18492575,0.00041073,5]
[357291962,1743987047025,-276.81507425,0.00041073,5]
[357291963,1743987047034,-500.0,0.00041073,5]
[357291964,1743987047043,-503.67973529,0.00041073,5]